[Event "*** Titled Tuesday Blitz"]
[Site "Chess.com"]
[Date "2020.04.21"]
[Round "7"]
[White "FMJoseHerrera"]
[Black "Andreikka"]
[Result "0-1"]
[WhiteElo "2614"]
[BlackElo "2942"]
[TimeControl "180+1"]
[EndTime "11:20:59 PDT"]
[Termination "Andreikka won by checkmate"]

1. Nf3 {[%clk 0:03:00.9]} 1... d5 {[%clk 0:02:59.4]} 2. g3 {[%clk 0:03:00.7]}
2... Nd7 {[%clk 0:02:59.7]} 3. Bg2 {[%clk 0:03:00.7]} 3... e5 {[%clk 0:02:59.6]}
4. O-O {[%clk 0:03:01.1]} 4... Ngf6 {[%clk 0:02:59.9]} 5. c4 {[%clk 0:03:00.6]}
5... dxc4 {[%clk 0:02:57.3]} 6. Qa4 {[%clk 0:02:56.6]} 6... c6 {[%clk
0:02:46.6]} 7. Qxc4 {[%clk 0:02:56]} 7... Bd6 {[%clk 0:02:47.1]} 8. d3 {[%clk
0:02:48.5]} 8... O-O {[%clk 0:02:46.4]} 9. a4 {[%clk 0:02:37.7]} 9... a5 {[%clk
0:02:34.9]} 10. Qc2 {[%clk 0:02:26.2]} 10... h6 {[%clk 0:02:33.4]} 11. Nbd2
{[%clk 0:02:24.3]} 11... Nb6 {[%clk 0:02:32.5]} 12. b3 {[%clk 0:02:23.5]} 12...
Re8 {[%clk 0:02:18.5]} 13. Bb2 {[%clk 0:02:21.4]} 13... Bc7 {[%clk 0:02:13.2]}
14. Rfd1 {[%clk 0:02:19.4]} 14... Nbd5 {[%clk 0:02:12.6]} 15. Rac1 {[%clk
0:02:10.3]} 15... Bg4 {[%clk 0:02:05.8]} 16. Qb1 {[%clk 0:01:57.6]} 16... Nd7
{[%clk 0:02:01.2]} 17. h3 {[%clk 0:01:45.2]} 17... Bh5 {[%clk 0:01:59.3]} 18.
Nc4 {[%clk 0:01:30.9]} 18... Qe7 {[%clk 0:01:49.4]} 19. e4 {[%clk 0:01:18.1]}
19... Nb4 {[%clk 0:01:48.7]} 20. Ne3 {[%clk 0:01:08]} 20... Nc5 {[%clk
0:01:40.8]} 21. Ba3 {[%clk 0:01:07.1]} 21... Ne6 {[%clk 0:01:37]} 22. g4 {[%clk
0:00:56.7]} 22... Bg6 {[%clk 0:01:35.8]} 23. Nf5 {[%clk 0:00:50]} 23... Qf6
{[%clk 0:01:34]} 24. Bb2 {[%clk 0:00:45.4]} 24... Nf4 {[%clk 0:01:33.1]} 25. Bf1
{[%clk 0:00:28.7]} 25... Bxf5 {[%clk 0:01:19.5]} 26. exf5 {[%clk 0:00:26]} 26...
Rad8 {[%clk 0:01:16.1]} 27. Bc3 {[%clk 0:00:16.7]} 27... Qd6 {[%clk 0:01:12.1]}
28. Nd2 {[%clk 0:00:15.8]} 28... e4 {[%clk 0:01:07.6]} 29. Nxe4 {[%clk 0:00:16]}
29... Ne2+ {[%clk 0:01:00.6]} 30. Bxe2 {[%clk 0:00:16.2]} 30... Qh2+ {[%clk
0:01:00.5]} 31. Kf1 {[%clk 0:00:10.9]} 31... Qh1# {[%clk 0:01:01.4]} 0-1

[Event "*** Titled Tuesday Blitz"]
[Site "Chess.com"]
[Date "2020.04.21"]
[Round "7"]
[White "Hikaru"]
[Black "BillieKimbah"]
[Result "1-0"]
[WhiteElo "3231"]
[BlackElo "2831"]
[TimeControl "180+1"]
[EndTime "11:21:00 PDT"]
[Termination "Hikaru won by resignation"]

1. Nf3 {[%clk 0:03:00.9]} 1... Nf6 {[%clk 0:02:59.1]} 2. b3 {[%clk 0:02:59.6]}
2... g6 {[%clk 0:02:59]} 3. d4 {[%clk 0:02:59.2]} 3... Bg7 {[%clk 0:02:59]} 4.
Bb2 {[%clk 0:02:59.8]} 4... O-O {[%clk 0:02:58.9]} 5. e3 {[%clk 0:03:00.2]} 5...
d6 {[%clk 0:02:59]} 6. Be2 {[%clk 0:02:59.7]} 6... Qe8 {[%clk 0:02:58.3]} 7. O-O
{[%clk 0:02:59]} 7... Nbd7 {[%clk 0:02:57.2]} 8. c4 {[%clk 0:02:55.4]} 8... e5
{[%clk 0:02:19.5]} 9. dxe5 {[%clk 0:02:54.1]} 9... dxe5 {[%clk 0:02:19.5]} 10.
Ba3 {[%clk 0:02:47.8]} 10... c5 {[%clk 0:02:19.4]} 11. Nc3 {[%clk 0:02:47.9]}
11... e4 {[%clk 0:02:17.3]} 12. Nd2 {[%clk 0:02:47.2]} 12... Qe5 {[%clk
0:02:16.8]} 13. Qc2 {[%clk 0:02:40.3]} 13... Re8 {[%clk 0:02:16.7]} 14. Bb2
{[%clk 0:02:39.9]} 14... Qe7 {[%clk 0:01:59.6]} 15. Rfd1 {[%clk 0:02:33.8]}
15... a6 {[%clk 0:01:53.9]} 16. Nf1 {[%clk 0:02:28.7]} 16... b6 {[%clk
0:01:48.1]} 17. Nd5 {[%clk 0:02:21.3]} 17... Nxd5 {[%clk 0:01:47.6]} 18. Rxd5
{[%clk 0:02:19.1]} 18... Bb7 {[%clk 0:01:43.1]} 19. Rd2 {[%clk 0:02:16.6]} 19...
Ne5 {[%clk 0:01:39.5]} 20. Ng3 {[%clk 0:02:11.6]} 20... f5 {[%clk 0:01:35.8]}
21. Bf1 {[%clk 0:02:11.8]} 21... Rad8 {[%clk 0:01:35.2]} 22. Rad1 {[%clk
0:02:11.6]} 22... Ng4 {[%clk 0:01:23.5]} 23. Bxg7 {[%clk 0:02:04.1]} 23... Kxg7
{[%clk 0:01:24.4]} 24. h3 {[%clk 0:01:55.6]} 24... Nf6 {[%clk 0:01:23.9]} 25.
Ne2 {[%clk 0:01:55.6]} 25... Bc6 {[%clk 0:01:22.5]} 26. Nf4 {[%clk 0:01:53.4]}
26... g5 {[%clk 0:01:21.5]} 27. Rxd8 {[%clk 0:01:52.7]} 27... Rxd8 {[%clk
0:01:17.4]} 28. Ne6+ {[%clk 0:01:43]} 28... Qxe6 {[%clk 0:01:17.3]} 29. Rxd8
{[%clk 0:01:43.9]} 29... f4 {[%clk 0:01:17.5]} 30. Qd2 {[%clk 0:01:42.1]} 30...
Bd7 {[%clk 0:01:17]} 31. exf4 {[%clk 0:01:41.1]} 31... g4 {[%clk 0:01:13.6]} 32.
hxg4 {[%clk 0:01:29.5]} 32... Qxg4 {[%clk 0:01:14.5]} 33. Qd6 {[%clk 0:01:27.7]}
33... Be8 {[%clk 0:01:06.8]} 34. Qe7+ {[%clk 0:01:24.8]} 34... Bf7 {[%clk
0:01:07.2]} 35. Rd6 {[%clk 0:01:24.4]} 35... Qxf4 {[%clk 0:01:04.2]} 36. g3
{[%clk 0:01:01.9]} 36... Qf5 {[%clk 0:01:04]} 37. Bh3 {[%clk 0:00:57.4]} 37...
Qg5 {[%clk 0:01:01.4]} 38. Be6 {[%clk 0:00:55.3]} 1-0

[Event "*** Titled Tuesday Blitz"]
[Site "Chess.com"]
[Date "2020.04.21"]
[Round "7"]
[White "GodDMuhammad"]
[Black "VALPARAISO37"]
[Result "0-1"]
[WhiteElo "2186"]
[BlackElo "2348"]
[TimeControl "180+1"]
[EndTime "11:21:00 PDT"]
[Termination "VALPARAISO37 won by checkmate"]

1. Nf3 {[%clk 0:03:00.9]} 1... d5 {[%clk 0:02:59.4]} 2. g3 {[%clk 0:02:57.9]}
2... g6 {[%clk 0:02:58.2]} 3. Bg2 {[%clk 0:02:58.1]} 3... Bg7 {[%clk 0:02:58.5]}
4. d3 {[%clk 0:02:59]} 4... e5 {[%clk 0:02:58.8]} 5. O-O {[%clk 0:02:59.2]} 5...
Ne7 {[%clk 0:02:58.3]} 6. Nbd2 {[%clk 0:02:59.3]} 6... a5 {[%clk 0:02:57.2]} 7.
e4 {[%clk 0:02:50.9]} 7... c6 {[%clk 0:02:55.3]} 8. Re1 {[%clk 0:02:49.9]} 8...
Nd7 {[%clk 0:02:53.2]} 9. b3 {[%clk 0:02:46.6]} 9... O-O {[%clk 0:02:52]} 10.
Bb2 {[%clk 0:02:46.4]} 10... f6 {[%clk 0:02:52]} 11. a4 {[%clk 0:02:37.3]} 11...
d4 {[%clk 0:02:50.6]} 12. c3 {[%clk 0:02:17.2]} 12... c5 {[%clk 0:02:50.1]} 13.
Nc4 {[%clk 0:02:13.7]} 13... Nb6 {[%clk 0:02:48.4]} 14. Ba3 {[%clk 0:02:13]}
14... Nxc4 {[%clk 0:02:47.2]} 15. dxc4 {[%clk 0:02:11.2]} 15... b6 {[%clk
0:02:46.8]} 16. cxd4 {[%clk 0:02:09.9]} 16... exd4 {[%clk 0:02:44.3]} 17. Qd3
{[%clk 0:01:26.3]} 17... Bb7 {[%clk 0:02:42]} 18. e5 {[%clk 0:00:58.6]} 18...
Qc7 {[%clk 0:02:40.1]} 19. exf6 {[%clk 0:00:55.7]} 19... Bxf6 {[%clk 0:02:39.4]}
20. Re6 {[%clk 0:00:49.5]} 20... Nf5 {[%clk 0:02:32.3]} 21. Rae1 {[%clk
0:00:46.1]} 21... Rad8 {[%clk 0:02:28.4]} 22. Nd2 {[%clk 0:00:36.8]} 22... Bxg2
{[%clk 0:02:27.3]} 23. Kxg2 {[%clk 0:00:37.7]} 23... Qb7+ {[%clk 0:02:26.3]} 24.
Kg1 {[%clk 0:00:31.1]} 24... Rf7 {[%clk 0:02:15.5]} 25. Ne4 {[%clk 0:00:29.6]}
25... Kg7 {[%clk 0:02:05.1]} 26. Bc1 {[%clk 0:00:26.9]} 26... Qd7 {[%clk
0:02:03.2]} 27. Rxb6 {[%clk 0:00:18.4]} 27... Qc7 {[%clk 0:01:59.3]} 28. Rxf6
{[%clk 0:00:17.3]} 28... Rxf6 {[%clk 0:01:58.6]} 29. Nxf6 {[%clk 0:00:18.2]}
29... Kxf6 {[%clk 0:01:58.1]} 30. h4 {[%clk 0:00:17.4]} 30... h6 {[%clk
0:01:57.7]} 31. Qf3 {[%clk 0:00:15.7]} 31... Kg7 {[%clk 0:01:47.1]} 32. Bf4
{[%clk 0:00:14.7]} 32... Qd7 {[%clk 0:01:46.5]} 33. Be5+ {[%clk 0:00:13.3]}
33... Kh7 {[%clk 0:01:47.1]} 34. h5 {[%clk 0:00:13.4]} 34... Qf7 {[%clk
0:01:45.8]} 35. hxg6+ {[%clk 0:00:12.4]} 35... Qxg6 {[%clk 0:01:46.2]} 36. Bf4
{[%clk 0:00:12.3]} 36... Rf8 {[%clk 0:01:45.1]} 37. Re5 {[%clk 0:00:11.9]} 37...
Rf7 {[%clk 0:01:44]} 38. Qe4 {[%clk 0:00:11.6]} 38... h5 {[%clk 0:01:42.3]} 39.
Rxc5 {[%clk 0:00:11.4]} 39... h4 {[%clk 0:01:39.6]} 40. Kg2 {[%clk 0:00:11.5]}
40... hxg3 {[%clk 0:01:36.1]} 41. fxg3 {[%clk 0:00:10.4]} 41... Nh4+ {[%clk
0:01:35.5]} 42. Kh3 {[%clk 0:00:08.5]} 42... Qxe4 {[%clk 0:01:35.4]} 43. Rh5+
{[%clk 0:00:09.1]} 43... Kg8 {[%clk 0:01:35.1]} 44. Rxh4 {[%clk 0:00:10]} 44...
d3 {[%clk 0:01:34.1]} 45. Rg4+ {[%clk 0:00:10]} 45... Rg7 {[%clk 0:01:34.1]} 46.
Rh4 {[%clk 0:00:08.3]} 46... Qh1# {[%clk 0:01:33.3]} 0-1

[Event "*** Titled Tuesday Blitz"]
[Site "Chess.com"]
[Date "2020.04.21"]
[Round "7"]
[White "Azatic"]
[Black "Kingsman132"]
[Result "0-1"]
[WhiteElo "2646"]
[BlackElo "2505"]
[TimeControl "180+1"]
[EndTime "11:21:01 PDT"]
[Termination "Kingsman132 won by resignation"]

1. e4 {[%clk 0:03:00.9]} 1... e5 {[%clk 0:02:49.9]} 2. Nf3 {[%clk 0:03:00.9]}
2... Nc6 {[%clk 0:02:48.2]} 3. Bb5 {[%clk 0:03:01.3]} 3... a6 {[%clk 0:02:47.8]}
4. Ba4 {[%clk 0:03:01]} 4... Nf6 {[%clk 0:02:45.3]} 5. O-O {[%clk 0:03:01.1]}
5... b5 {[%clk 0:02:30]} 6. Bb3 {[%clk 0:02:54.2]} 6... Bc5 {[%clk 0:02:29]} 7.
c3 {[%clk 0:02:54.2]} 7... d6 {[%clk 0:02:21.8]} 8. d4 {[%clk 0:02:54.1]} 8...
Bb6 {[%clk 0:02:18.1]} 9. Bg5 {[%clk 0:02:54.7]} 9... h6 {[%clk 0:02:13]} 10.
Bh4 {[%clk 0:02:54.6]} 10... g5 {[%clk 0:02:09.8]} 11. Bg3 {[%clk 0:02:54.6]}
11... exd4 {[%clk 0:02:04.2]} 12. cxd4 {[%clk 0:02:44.2]} 12... Bg4 {[%clk
0:02:03.8]} 13. e5 {[%clk 0:02:18.5]} 13... dxe5 {[%clk 0:02:00.3]} 14. dxe5
{[%clk 0:02:19.4]} 14... Qxd1 {[%clk 0:01:57.8]} 15. Rxd1 {[%clk 0:02:20.3]}
15... Nh5 {[%clk 0:01:49.8]} 16. Nc3 {[%clk 0:02:11.2]} 16... Nxg3 {[%clk
0:01:46.9]} 17. hxg3 {[%clk 0:02:07.4]} 17... Bxf3 {[%clk 0:01:37.8]} 18. gxf3
{[%clk 0:02:08.3]} 18... Nd4 {[%clk 0:01:37.9]} 19. Nd5 {[%clk 0:01:57]} 19...
Nxf3+ {[%clk 0:01:11.9]} 20. Kg2 {[%clk 0:01:55.6]} 20... Nxe5 {[%clk
0:01:05.5]} 21. Nxb6 {[%clk 0:01:42.3]} 21... cxb6 {[%clk 0:01:01.1]} 22. Re1
{[%clk 0:01:42.7]} 22... f6 {[%clk 0:00:59.4]} 23. f4 {[%clk 0:01:42.5]} 23...
gxf4 {[%clk 0:00:59.3]} 24. gxf4 {[%clk 0:01:43.4]} 24... O-O-O {[%clk
0:00:56.1]} 25. fxe5 {[%clk 0:01:41.8]} 25... fxe5 {[%clk 0:00:55.8]} 26. Rad1
{[%clk 0:01:39.2]} 26... Rxd1 {[%clk 0:00:53.6]} 27. Rxd1 {[%clk 0:01:40.1]}
27... Rd8 {[%clk 0:00:53.7]} 28. Rxd8+ {[%clk 0:01:32.8]} 28... Kxd8 {[%clk
0:00:54.6]} 29. Kf3 {[%clk 0:01:33.5]} 29... Ke7 {[%clk 0:00:54.3]} 30. Ke4
{[%clk 0:01:33.3]} 30... Kd6 {[%clk 0:00:54.7]} 31. Bd1 {[%clk 0:01:33.1]} 31...
a5 {[%clk 0:00:53.1]} 32. Be2 {[%clk 0:01:33.1]} 32... b4 {[%clk 0:00:51.1]} 33.
Bh5 {[%clk 0:01:22.3]} 33... a4 {[%clk 0:00:46.8]} 34. Be8 {[%clk 0:01:12.3]}
34... a3 {[%clk 0:00:46.5]} 35. bxa3 {[%clk 0:01:12.9]} 35... bxa3 {[%clk
0:00:42.8]} 36. Bf7 {[%clk 0:01:12.9]} 36... b5 {[%clk 0:00:37.6]} 37. Be8
{[%clk 0:01:13]} 37... b4 {[%clk 0:00:37.5]} 38. Bf7 {[%clk 0:01:13.6]} 38... h5
{[%clk 0:00:29]} 39. Bxh5 {[%clk 0:01:12.8]} 39... b3 {[%clk 0:00:29.3]} 0-1

[Event "*** Titled Tuesday Blitz"]
[Site "Chess.com"]
[Date "2020.04.21"]
[Round "7"]
[White "Corpescador"]
[Black "Neimar24"]
[Result "0-1"]
[WhiteElo "2401"]
[BlackElo "2572"]
[TimeControl "180+1"]
[EndTime "11:21:11 PDT"]
[Termination "Neimar24 won on time"]

1. e4 {[%clk 0:03:00.9]} 1... e6 {[%clk 0:02:56.6]} 2. d4 {[%clk 0:03:00.7]}
2... d5 {[%clk 0:02:55.8]} 3. Nc3 {[%clk 0:03:00.9]} 3... Nf6 {[%clk 0:02:54.8]}
4. e5 {[%clk 0:03:00.9]} 4... Nfd7 {[%clk 0:02:54.2]} 5. f4 {[%clk 0:03:01.2]}
5... c5 {[%clk 0:02:54.7]} 6. Nf3 {[%clk 0:03:01.4]} 6... Nc6 {[%clk 0:02:55.3]}
7. Be3 {[%clk 0:03:01.5]} 7... Be7 {[%clk 0:02:55.7]} 8. Qd2 {[%clk 0:03:01.4]}
8... O-O {[%clk 0:02:54.4]} 9. dxc5 {[%clk 0:02:58.9]} 9... Qa5 {[%clk
0:02:52.7]} 10. a3 {[%clk 0:02:49.2]} 10... a6 {[%clk 0:02:47.6]} 11. O-O-O
{[%clk 0:02:30.1]} 11... Nxc5 {[%clk 0:02:37.9]} 12. Nd4 {[%clk 0:02:24.9]}
12... Rd8 {[%clk 0:02:31.1]} 13. Kb1 {[%clk 0:01:57.6]} 13... Na4 {[%clk
0:02:10.9]} 14. Nxa4 {[%clk 0:01:34.6]} 14... Qxa4 {[%clk 0:02:08.8]} 15. Bd3
{[%clk 0:01:26.2]} 15... Na5 {[%clk 0:01:55.8]} 16. f5 {[%clk 0:01:04.9]} 16...
exf5 {[%clk 0:01:51.1]} 17. Bg5 {[%clk 0:00:25.6]} 17... Re8 {[%clk 0:01:24.2]}
18. Bxe7 {[%clk 0:00:16.5]} 18... Rxe7 {[%clk 0:01:15]} 19. Qg5 {[%clk
0:00:15.8]} 19... Re8 {[%clk 0:01:08.4]} 20. Bxf5 {[%clk 0:00:15.1]} 20... Nc4
{[%clk 0:01:01.4]} 21. Rhe1 {[%clk 0:00:10.3]} 21... Be6 {[%clk 0:00:56.3]} 22.
Bd3 {[%clk 0:00:05]} 22... Nxb2 {[%clk 0:00:48.8]} 23. Kxb2 {[%clk 0:00:02.9]}
23... Qxd4+ {[%clk 0:00:47.9]} 24. Ka2 {[%clk 0:00:03.6]} 24... Qc3 {[%clk
0:00:44.5]} 25. Ra1 {[%clk 0:00:01.7]} 25... d4+ {[%clk 0:00:44.2]} 26. Kb1
{[%clk 0:00:01.9]} 26... Qxe1+ {[%clk 0:00:43.6]} 0-1

[Event "*** Titled Tuesday Blitz"]
[Site "Chess.com"]
[Date "2020.04.21"]
[Round "7"]
[White "Diego_FloresQ"]
[Black "andy_rekt"]
[Result "1-0"]
[WhiteElo "2412"]
[BlackElo "2248"]
[TimeControl "180+1"]
[EndTime "11:21:12 PDT"]
[Termination "Diego_FloresQ won by resignation"]

1. e4 {[%clk 0:03:00.9]} 1... c5 {[%clk 0:02:59.8]} 2. Nf3 {[%clk 0:03:00.3]}
2... Nc6 {[%clk 0:03:00.3]} 3. d4 {[%clk 0:02:57.8]} 3... cxd4 {[%clk
0:03:00.3]} 4. Nxd4 {[%clk 0:02:58.7]} 4... Nf6 {[%clk 0:03:00.6]} 5. Nc3 {[%clk
0:02:58.1]} 5... d6 {[%clk 0:02:59.8]} 6. Bg5 {[%clk 0:02:56.6]} 6... e6 {[%clk
0:03:00]} 7. Qd2 {[%clk 0:02:56.3]} 7... Bd7 {[%clk 0:02:59.6]} 8. O-O-O {[%clk
0:02:50.8]} 8... a6 {[%clk 0:02:59.6]} 9. f4 {[%clk 0:02:46.4]} 9... b5 {[%clk
0:02:59.5]} 10. Qe1 {[%clk 0:02:19.3]} 10... Qb6 {[%clk 0:02:55.4]} 11. Nxc6
{[%clk 0:02:12.2]} 11... Bxc6 {[%clk 0:02:54.8]} 12. Nd5 {[%clk 0:02:10.8]}
12... Qd8 {[%clk 0:01:53.2]} 13. Bh4 {[%clk 0:01:35.7]} 13... Rc8 {[%clk
0:01:29.9]} 14. Kb1 {[%clk 0:01:03.8]} 14... h6 {[%clk 0:01:26.9]} 15. e5 {[%clk
0:00:58]} 15... dxe5 {[%clk 0:01:12.2]} 16. Nxf6+ {[%clk 0:00:56.7]} 16... Qxf6
{[%clk 0:00:57.1]} 17. Bxf6 {[%clk 0:00:55.6]} 17... gxf6 {[%clk 0:00:58]} 18.
fxe5 {[%clk 0:00:56.3]} 18... f5 {[%clk 0:00:51.7]} 19. Qa5 {[%clk 0:00:52.4]}
19... Be7 {[%clk 0:00:41.7]} 20. Qxa6 {[%clk 0:00:52]} 20... O-O {[%clk
0:00:41.6]} 21. Bxb5 {[%clk 0:00:45.4]} 21... Be4 {[%clk 0:00:39.1]} 22. Bd3
{[%clk 0:00:44.8]} 22... Bd5 {[%clk 0:00:37.1]} 23. Qb6 {[%clk 0:00:30.9]} 23...
Ra8 {[%clk 0:00:35.4]} 24. b3 {[%clk 0:00:30.3]} 24... Rab8 {[%clk 0:00:32.2]}
25. Qf2 {[%clk 0:00:30]} 25... Rfc8 {[%clk 0:00:29.6]} 26. Rhg1 {[%clk
0:00:26.5]} 26... Bc5 {[%clk 0:00:27.2]} 27. Qg3+ {[%clk 0:00:27.1]} 27... Kf8
{[%clk 0:00:26.9]} 28. Rgf1 {[%clk 0:00:26.5]} 1-0

[Event "*** Titled Tuesday Blitz"]
[Site "Chess.com"]
[Date "2020.04.21"]
[Round "7"]
[White "CzechmVIII"]
[Black "NZT72"]
[Result "0-1"]
[WhiteElo "2243"]
[BlackElo "2446"]
[TimeControl "180+1"]
[EndTime "11:21:14 PDT"]
[Termination "NZT72 won by resignation"]

1. e4 {[%clk 0:03:00.9]} 1... e5 {[%clk 0:02:59.7]} 2. Nf3 {[%clk 0:03:00.1]}
2... Nc6 {[%clk 0:02:59.3]} 3. Bb5 {[%clk 0:03:00.6]} 3... Nf6 {[%clk 0:02:59]}
4. O-O {[%clk 0:02:56.2]} 4... Nxe4 {[%clk 0:02:58.9]} 5. d4 {[%clk 0:02:54.6]}
5... Nd6 {[%clk 0:02:58.8]} 6. Bxc6 {[%clk 0:02:54.6]} 6... dxc6 {[%clk
0:02:59.1]} 7. dxe5 {[%clk 0:02:54.9]} 7... Nf5 {[%clk 0:02:59.3]} 8. Qxd8+
{[%clk 0:02:55]} 8... Kxd8 {[%clk 0:02:59.6]} 9. h3 {[%clk 0:02:55.3]} 9... h5
{[%clk 0:02:58.8]} 10. Nc3 {[%clk 0:02:54]} 10... Ke8 {[%clk 0:02:58.5]} 11. Ne2
{[%clk 0:02:49.9]} 11... Be6 {[%clk 0:02:52.6]} 12. Nf4 {[%clk 0:02:44.5]} 12...
Bc8 {[%clk 0:02:18]} 13. b3 {[%clk 0:02:36.6]} 13... Be7 {[%clk 0:02:15.6]} 14.
Nd3 {[%clk 0:02:25.2]} 14... b6 {[%clk 0:02:07.9]} 15. Bb2 {[%clk 0:02:21.5]}
15... c5 {[%clk 0:01:55.3]} 16. Nf4 {[%clk 0:02:13.8]} 16... Bb7 {[%clk
0:01:53]} 17. Nd2 {[%clk 0:01:50.7]} 17... Rd8 {[%clk 0:01:42.8]} 18. Rad1
{[%clk 0:01:47.6]} 18... g5 {[%clk 0:01:35.4]} 19. e6 {[%clk 0:01:32.5]} 19...
f6 {[%clk 0:00:54.9]} 20. Ng6 {[%clk 0:01:25.1]} 20... Rg8 {[%clk 0:00:52.6]}
21. Nxe7 {[%clk 0:01:22.8]} 21... Kxe7 {[%clk 0:00:52.8]} 22. Rfe1 {[%clk
0:01:17.8]} 22... g4 {[%clk 0:00:48.6]} 23. hxg4 {[%clk 0:01:15.2]} 23... Rxg4
{[%clk 0:00:40.1]} 24. f3 {[%clk 0:01:08.4]} 24... Rg6 {[%clk 0:00:36.8]} 25.
Ne4 {[%clk 0:01:01.8]} 25... Rxd1 {[%clk 0:00:30.5]} 26. Rxd1 {[%clk 0:01:02.7]}
26... Bxe4 {[%clk 0:00:25]} 27. fxe4 {[%clk 0:01:02.9]} 27... Ne3 {[%clk
0:00:24]} 28. Rd7+ {[%clk 0:00:50.1]} 28... Kxe6 {[%clk 0:00:24.1]} 29. Rxc7
{[%clk 0:00:50.3]} 29... Rxg2+ {[%clk 0:00:23.2]} 30. Kh1 {[%clk 0:00:50.4]}
30... Rxc2 {[%clk 0:00:22.6]} 31. Ba3 {[%clk 0:00:35.3]} 31... Rxa2 {[%clk
0:00:21.2]} 32. Bc1 {[%clk 0:00:35.4]} 32... Ra1 {[%clk 0:00:20.6]} 0-1

[Event "*** Titled Tuesday Blitz"]
[Site "Chess.com"]
[Date "2020.04.21"]
[Round "7"]
[White "Jenia84"]
[Black "RU_B9"]
[Result "1-0"]
[WhiteElo "2299"]
[BlackElo "1850"]
[TimeControl "180+1"]
[EndTime "11:21:15 PDT"]
[Termination "Jenia84 won on time"]

1. Nf3 {[%clk 0:02:58.9]} 1... d5 {[%clk 0:02:59.4]} 2. e3 {[%clk 0:02:55.2]}
2... g6 {[%clk 0:02:53.8]} 3. c4 {[%clk 0:02:54.9]} 3... Nf6 {[%clk 0:02:51.3]}
4. Nc3 {[%clk 0:02:55]} 4... Bg7 {[%clk 0:02:48.9]} 5. cxd5 {[%clk 0:02:54.1]}
5... Nxd5 {[%clk 0:02:48.4]} 6. Bc4 {[%clk 0:02:54.5]} 6... Nxc3 {[%clk
0:02:38.7]} 7. bxc3 {[%clk 0:02:53.7]} 7... O-O {[%clk 0:02:37.5]} 8. O-O {[%clk
0:02:53.5]} 8... c5 {[%clk 0:02:35.4]} 9. d4 {[%clk 0:02:52.2]} 9... Nc6 {[%clk
0:02:34.3]} 10. Ba3 {[%clk 0:02:50.5]} 10... cxd4 {[%clk 0:02:03.6]} 11. cxd4
{[%clk 0:02:45.9]} 11... b6 {[%clk 0:02:02.4]} 12. Rc1 {[%clk 0:02:44.2]} 12...
Bb7 {[%clk 0:02:00.9]} 13. Qe2 {[%clk 0:02:41.8]} 13... Re8 {[%clk 0:01:39.5]}
14. Bb5 {[%clk 0:02:19.9]} 14... Rc8 {[%clk 0:01:21.4]} 15. e4 {[%clk
0:02:17.8]} 15... Bxd4 {[%clk 0:01:10]} 16. Rfd1 {[%clk 0:01:54.4]} 16... e5
{[%clk 0:01:09.2]} 17. Bb2 {[%clk 0:01:44.7]} 17... Qf6 {[%clk 0:00:50.1]} 18.
Nxd4 {[%clk 0:01:14.8]} 18... exd4 {[%clk 0:00:34.9]} 19. Bxc6 {[%clk
0:01:05.4]} 19... Bxc6 {[%clk 0:00:13.6]} 20. Bxd4 {[%clk 0:01:05.2]} 20... Qe6
{[%clk 0:00:11.4]} 21. f3 {[%clk 0:01:03.2]} 21... Ba4 {[%clk 0:00:09.5]} 22.
Re1 {[%clk 0:00:56.9]} 22... Rxc1 {[%clk 0:00:04.8]} 23. Rxc1 {[%clk 0:00:56.3]}
23... Rd8 {[%clk 0:00:04.2]} 24. Qb2 {[%clk 0:00:40.6]} 1-0

[Event "*** Titled Tuesday Blitz"]
[Site "Chess.com"]
[Date "2020.04.21"]
[Round "7"]
[White "Noam_Vitenberg"]
[Black "aa175"]
[Result "1-0"]
[WhiteElo "2495"]
[BlackElo "2308"]
[TimeControl "180+1"]
[EndTime "11:21:17 PDT"]
[Termination "Noam_Vitenberg won on time"]

1. d4 {[%clk 0:03:00.9]} 1... Nf6 {[%clk 0:02:55.8]} 2. c4 {[%clk 0:02:54.4]}
2... g6 {[%clk 0:02:51.3]} 3. Nc3 {[%clk 0:02:52.6]} 3... d5 {[%clk 0:02:48.7]}
4. cxd5 {[%clk 0:02:52.5]} 4... Nxd5 {[%clk 0:02:49.6]} 5. e4 {[%clk 0:02:51.9]}
5... Nxc3 {[%clk 0:02:49.2]} 6. bxc3 {[%clk 0:02:52.8]} 6... Bg7 {[%clk
0:02:49.7]} 7. Nf3 {[%clk 0:02:50.3]} 7... c5 {[%clk 0:02:47.7]} 8. Be3 {[%clk
0:02:49]} 8... O-O {[%clk 0:02:45.3]} 9. Rc1 {[%clk 0:02:47.6]} 9... Nc6 {[%clk
0:02:40.1]} 10. d5 {[%clk 0:02:45.4]} 10... Ne5 {[%clk 0:02:20.4]} 11. Nxe5
{[%clk 0:02:44.6]} 11... Bxe5 {[%clk 0:02:21.3]} 12. Be2 {[%clk 0:02:44.1]}
12... b6 {[%clk 0:02:20.7]} 13. O-O {[%clk 0:02:42.7]} 13... Bb7 {[%clk
0:02:16.3]} 14. f4 {[%clk 0:02:36.2]} 14... Bg7 {[%clk 0:02:16.4]} 15. Bf3
{[%clk 0:02:31.6]} 15... Qd7 {[%clk 0:01:48.4]} 16. c4 {[%clk 0:02:26.3]} 16...
Rad8 {[%clk 0:01:36.8]} 17. Qe2 {[%clk 0:02:19.9]} 17... e5 {[%clk 0:01:30.2]}
18. Bg4 {[%clk 0:02:06]} 18... f5 {[%clk 0:01:28.7]} 19. Bh3 {[%clk 0:01:55.8]}
19... Qe7 {[%clk 0:01:01.6]} 20. fxe5 {[%clk 0:01:48.8]} 20... Qxe5 {[%clk
0:00:54.5]} 21. exf5 {[%clk 0:01:41.2]} 21... Rde8 {[%clk 0:00:54.9]} 22. Rce1
{[%clk 0:01:40.4]} 22... gxf5 {[%clk 0:00:37.1]} 23. Qh5 {[%clk 0:01:33.6]}
23... f4 {[%clk 0:00:27.8]} 24. Qxe5 {[%clk 0:01:33]} 24... Rxe5 {[%clk
0:00:20.6]} 25. Bf2 {[%clk 0:01:17.2]} 25... Rxe1 {[%clk 0:00:20.2]} 26. Rxe1
{[%clk 0:01:15.3]} 26... Bc3 {[%clk 0:00:19]} 27. Re7 {[%clk 0:01:14.2]} 27...
Ba6 {[%clk 0:00:19.1]} 28. Be6+ {[%clk 0:01:10.8]} 28... Kh8 {[%clk 0:00:18.9]}
29. d6 {[%clk 0:01:10.7]} 29... Rd8 {[%clk 0:00:09.1]} 30. d7 {[%clk 0:00:54.7]}
30... Bf6 {[%clk 0:00:09.1]} 31. Rf7 {[%clk 0:00:54.6]} 31... Bg7 {[%clk
0:00:01.2]} 32. Bh4 {[%clk 0:00:51.8]} 32... Bd4+ {[%clk 0:00:01.2]} 33. Kh1
{[%clk 0:00:51.2]} 1-0